bitfinex/quotes_SOLUSD_20240626
["timestamp","ask_amount","ask_price","bid_price","bid_amount"]
[1719382704581,27.2776,137.41,137.36,0.34]
[1719382704789,7.2776,137.41,137.36,0.34]
[1719382704982,20.0,137.4,137.36,0.34]
[1719382705794,20.0,137.4,137.32,36.30427907]
[1719382705962,7.2787,137.39,137.33,9.76151129]
[1719382706293,7.2792,137.38,137.33,9.76151129]
[1719382706590,7.2787,137.39,137.33,9.76151129]
[1719382707086,7.279,137.38,137.33,9.76151129]
[1719382708068,7.2785,137.39,137.33,17.04301129]
[1719382708283,7.2785,137.39,137.33,0.17]
[1719382708468,7.2791,137.38,137.33,7.74717103]
[1719382712768,7.2791,137.38,137.33,0.17]
[1719382712980,7.2791,137.38,137.33,0.34]
[1719382713288,7.2786,137.39,137.33,0.34]
[1719382713491,7.2786,137.39,137.33,7.6214]
[1719382714771,7.2782,137.4,137.33,7.6214]
[1719382716688,38.1893,137.45,137.34,10.13671244]
[1719382716895,38.1893,137.45,137.35,0.34]
[1719382717193,38.1893,137.45,137.35,11.98507103]
[1719382717379,7.2779,137.41,137.35,11.98507103]
[1719382717579,7.2781,137.4,137.36,7.63708425]
[1719382718176,7.2781,137.4,137.35,0.34]
[1719382719293,18.1912,137.43,137.35,0.17]
[1719382719493,7.2801,137.37,137.34,0.17]
[1719382719693,7.2801,137.37,137.33,0.17]
[1719382720089,7.2792,137.38,137.33,0.17]
[1719382720977,7.2792,137.38,137.33,0.34]
[1719382722477,7.2792,137.38,137.33,9.2059627]
[1719382724802,7.2792,137.38,137.33,0.34]
[1719382726105,7.2787,137.39,137.33,0.34]
[1719382728210,34.6056,137.41,137.32,29.02446983]
[1719382728385,27.37129308,137.4,137.32,21.4411]
[1719382728585,27.37129308,137.4,137.25,63.188]
[1719382728586,18.1966,137.39,137.28,16.0324]
[1719382728780,20.0,137.38,137.28,29.6606]
[1719382729007,20.0,137.38,137.27,25.79697226]
[1719382729008,22.6254,137.37,137.27,7.58567226]
[1719382729181,258.6,137.34,137.24,22.3763]
[1719382729383,73.41618197,137.33,137.24,22.3763]
[1719382729581,7.2839,137.29,137.24,22.3763]
[1719382729885,7.2835,137.3,137.24,22.3763]
[1719382730204,20.0,137.29,137.24,22.3763]
[1719382730401,91.62098197,137.33,137.24,22.3763]
[1719382731497,7.2839,137.29,137.24,22.3763]
[1719382732884,7.2844,137.28,137.24,22.3763]
[1719382733297,28.07618197,137.33,137.24,22.3763]
[1719382733500,7.283,137.31,137.25,18.5545]
[1719382733823,7.2826,137.32,137.24,22.3763]
[1719382734100,7.2829,137.31,137.25,0.34]
[1719382736983,7.2829,137.31,137.25,7.6259]
[1719382737801,7.2824,137.32,137.25,7.6259]
[1719382738605,7.283,137.31,137.25,7.6259]
[1719382739010,20.0,137.33,137.24,22.3763]
[1719382739211,7.2836,137.3,137.24,22.3763]
[1719382739390,7.2838,137.29,137.24,22.3763]
[1719382740696,28.07618197,137.33,137.25,9.08232276]
[1719382740900,20.0,137.33,137.26,7.285]
[1719382741092,7.2823,137.32,137.27,9.39749999]
[1719382741415,20.0,137.33,137.27,0.17]
[1719382741617,20.0,137.33,137.27,0.34]
[1719382741913,7.2823,137.32,137.27,0.34]
[1719382742296,7.2823,137.32,137.26,7.6253]
[1719382743113,7.2823,137.32,137.26,0.34]
[1719382743315,7.2828,137.31,137.26,0.34]
[1719382745916,18.2061,137.32,137.24,22.3763]
[1719382746099,7.2852,137.27,137.24,22.3763]
[1719382746303,7.2855,137.26,137.24,22.3763]
[1719382747006,7.2851,137.27,137.24,22.3763]
[1719382747209,18.2085,137.3,137.21,21.1857]
[1719382747409,7.2861,137.25,137.21,21.1857]
[1719382749229,7.2851,137.27,137.22,9.04464574]
[1719382749398,27.284,137.29,137.23,9.99311846]
[1719382749710,7.2844,137.28,137.24,0.17]
[1719382749900,7.2844,137.28,137.23,0.17]
[1719382750112,20.0,137.29,137.23,0.17]
[1719382750113,20.0,137.29,137.23,7.2866]
[1719382750430,27.284,137.29,137.24,0.34]
[1719382750629,7.2843,137.28,137.24,0.34]
[1719382750840,7.2843,137.28,137.23,0.34]
[1719382751820,20.0,137.29,137.23,0.34]
[1719382751997,20.0,137.31,137.22,0.34]
[1719382752615,20.0,137.31,137.22,7.6272]
[1719382752819,20.0,137.31,137.23,18.2173]
[1719382753133,7.2836,137.3,137.24,0.34]
[1719382753630,7.2838,137.29,137.24,0.34]
[1719382754428,7.2844,137.28,137.24,0.34]
[1719382755225,7.2844,137.28,137.23,0.34]
[1719382756631,7.2844,137.28,137.24,0.17]
[1719382756816,7.2844,137.28,137.22,0.34]
[1719382757322,18.2085,137.3,137.22,0.34]
[1719382757642,7.2856,137.26,137.22,0.34]
[1719382757799,7.2871,137.23,137.21,21.1857]
[1719382757998,7.2865,137.24,137.21,21.1857]
[1719382759115,20.0,137.25,137.22,0.17]
[1719382759304,8.07618197,137.3,137.22,7.6272]
[1719382759508,27.2841,137.29,137.23,7.282]
[1719382759723,27.2841,137.29,137.24,0.34]
[1719382759937,27.2843,137.29,137.24,0.34]
[1719382760428,15.35968197,137.3,137.24,7.2861]
[1719382760735,7.2838,137.29,137.25,0.34]
[1719382760913,15.35968197,137.3,137.25,0.17]
[1719382761125,7.2838,137.29,137.24,0.17]
[1719382762740,258.6,137.34,137.26,6.4669]
[1719382762926,258.6,137.34,137.28,7.2843]
[1719382763121,265.8812,137.34,137.29,0.34]
[1719382764032,265.8812,137.34,137.28,0.34]
[1719382764536,7.2817,137.33,137.28,0.34]
[1719382766844,265.8813,137.34,137.28,7.6243]
[1719382767141,258.6,137.34,137.28,7.6243]
[1719382767442,258.6,137.34,137.29,23.5651]
[1719382767665,258.6,137.34,137.3,0.34]
[1719382767866,258.6,137.34,137.3,7.6231]
[1719382768446,7.2802,137.36,137.3,7.6231]
[1719382769560,7.2802,137.36,137.3,0.34]
[1719382770147,42.37728197,137.4,137.3,0.34]
[1719382770148,18.198,137.38,137.3,0.34]
[1719382770453,7.2817,137.33,137.29,16.2814]
[1719382770653,7.2823,137.32,137.29,16.2814]
[1719382770854,7.2813,137.34,137.29,16.2814]
[1719382771773,7.2813,137.34,137.3,0.17]
[1719382771971,7.2806,137.36,137.3,0.17]
[1719382772154,7.2806,137.36,137.31,6.1428]
[1719382772341,7.2806,137.36,137.32,0.34]
[1719382773177,7.2797,137.37,137.32,0.34]
[1719382773471,27.2802,137.36,137.32,0.34]
[1719382775364,20.0,137.36,137.31,6.1428]
[1719382775555,7.2815,137.34,137.31,6.1428]
[1719382777973,20.0,137.37,137.31,6.1428]
[1719382778185,16.105,137.4,137.32,0.34]
[1719382778350,7.2795,137.38,137.32,0.34]
[1719382778551,7.2795,137.38,137.32,7.64541424]
[1719382779758,7.2795,137.38,137.32,0.34]
[1719382780173,7.2798,137.37,137.32,0.34]
[1719382782183,8.07618197,137.42,137.33,16.2537]
[1719382782355,20.0,137.41,137.34,5.02614861]
[1719382782553,20.0,137.41,137.34,0.34]
[1719382782756,7.2792,137.38,137.34,0.34]
[1719382783877,7.2787,137.39,137.34,0.34]
[1719382784959,7.2811,137.34,137.33,16.2537]
[1719382785255,18.1982,137.38,137.33,16.2537]
[1719382786085,7.2807,137.35,137.33,16.2537]
[1719382788387,7.2802,137.36,137.33,16.2537]
[1719382789687,18.1982,137.38,137.31,6.1428]
[1719382789982,7.2814,137.34,137.31,6.1428]
[1719382791469,7.2817,137.33,137.3,16.8208]
[1719382792783,7.2825,137.32,137.28,6.5568]
[1719382793565,7.2829,137.31,137.28,6.5568]
[1719382794191,7.2833,137.3,137.28,6.5568]
[1719382794698,7.2833,137.3,137.26,16.3323]
[1719382795064,7.2833,137.3,137.27,0.17]
[1719382795586,7.2839,137.29,137.26,16.3323]
[1719382795785,7.2834,137.3,137.26,16.3323]
[1719382796093,7.2829,137.31,137.26,16.3323]
[1719382796262,18.2031,137.34,137.26,16.3323]
[1719382796464,20.0,137.33,137.26,16.3323]
[1719382796685,20.0,137.33,137.26,23.6177]
[1719382796686,7.2824,137.32,137.26,23.6177]
[1719382796870,27.2817,137.33,137.27,8.72749999]
[1719382797187,7.2823,137.32,137.27,8.72749999]
[1719382797394,7.2823,137.32,137.27,0.17]
[1719382797687,7.2828,137.31,137.27,9.03490107]
[1719382799886,7.2828,137.31,137.27,0.34]
[1719382801093,20.0,137.33,137.27,0.34]
[1719382801094,7.2824,137.32,137.27,0.34]
[1719382801592,7.2829,137.31,137.27,0.34]
[1719382801761,7.2823,137.32,137.27,0.34]
[1719382801966,7.2829,137.31,137.27,0.34]
[1719382802296,7.2833,137.3,137.27,0.34]
[1719382802592,7.2829,137.31,137.27,0.34]
[1719382803868,7.2836,137.3,137.27,0.34]
[1719382807201,7.2841,137.29,137.27,0.34]
[1719382808273,7.2834,137.3,137.27,0.34]
[1719382808474,20.0,137.34,137.27,0.34]
[1719382808671,7.2821,137.33,137.27,7.6245]
[1719382808916,27.2826,137.32,137.27,0.34]
[1719382809096,7.2829,137.31,137.27,0.34]
[1719382810706,8.07618197,137.36,137.28,7.284]
[1719382810899,8.07618197,137.36,137.27,6.59049667]
[1719382810900,16.0799,137.38,137.29,12.94713]
[1719382811086,18.1971,137.39,137.3,16.3762]
[1719382811087,20.0,137.37,137.3,16.3762]
[1719382811287,7.2799,137.37,137.31,0.17]
[1719382811599,7.2791,137.38,137.31,0.17]
[1719382811806,15.35488197,137.39,137.33,7.2813]
[1719382811986,7.2774,137.42,137.35,22.3851]
[1719382812189,7.2774,137.42,137.36,0.34]
[1719382813908,18.1852,137.48,137.37,6.3339]
[1719382814110,20.0,137.47,137.38,0.34]
[1719382814312,7.276,137.44,137.38,0.34]
[1719382814616,7.2767,137.43,137.38,0.34]
[1719382814904,20.0,137.47,137.38,0.34]
[1719382815079,7.2765,137.43,137.38,0.34]
[1719382815478,7.2773,137.42,137.38,0.34]
[1719382815980,18.1875,137.46,137.38,0.34]
[1719382815981,7.2765,137.43,137.38,0.34]
[1719382818089,18.1875,137.46,137.38,0.17]
[1719382818298,20.0,137.45,137.37,6.3339]
[1719382818500,7.2764,137.43,137.38,0.34]
[1719382819396,7.276,137.44,137.38,0.34]
[1719382820029,42.6765,137.5,137.38,0.34]
[1719382820030,18.1837,137.49,137.38,0.34]
[1719382820190,265.86873753,137.52,137.4,6.1571]
[1719382820386,7.2728,137.5,137.43,7.2763]
[1719382820615,7.2733,137.49,137.44,0.34]
[1719382821693,7.2738,137.48,137.44,0.34]
[1719382821909,7.2738,137.48,137.41,18.193]
[1719382821910,7.2749,137.46,137.41,18.193]
[1719382822218,7.2749,137.46,137.42,0.34]
[1719382822416,7.2743,137.47,137.42,0.34]
[1719382822717,7.2743,137.47,137.42,9.7127725]
[1719382822923,7.2743,137.47,137.42,0.34]
[1719382823951,7.2739,137.48,137.42,8.46664597]
[1719382824526,7.2739,137.48,137.42,0.34]
[1719382825396,7.2743,137.47,137.42,0.34]
[1719382827015,7.2743,137.47,137.42,6.58034533]
[1719382827416,7.2743,137.47,137.42,0.34]
[1719382830330,18.1837,137.49,137.4,6.1571]
[1719382830515,20.0,137.48,137.4,6.1571]
[1719382831410,7.2748,137.46,137.41,0.17]
[1719382831723,7.2753,137.45,137.41,0.34]
[1719382832326,7.2753,137.45,137.41,0.17]
[1719382832626,7.2759,137.44,137.41,0.17]
[1719382833811,7.2755,137.45,137.41,0.17]
[1719382834511,7.275,137.46,137.41,0.17]
[1719382834929,7.2755,137.45,137.41,0.17]
[1719382835606,7.2748,137.46,137.41,0.17]
[1719382836703,7.2734,137.49,137.43,7.2761]
[1719382836909,7.2726,137.51,137.44,1.83827977]
[1719382837130,20.0,137.5,137.45,7.445]
[1719382837311,20.0,137.5,137.45,18.3582]
[1719382837501,20.0,137.5,137.45,34.8547]
[1719382837931,27.2727,137.5,137.45,34.8547]
[1719382838133,27.2727,137.5,137.45,16.6665]
[1719382838713,7.2732,137.49,137.45,16.6665]
[1719382839141,7.2739,137.48,137.45,16.6665]
[1719382839619,20.0,137.5,137.45,16.6665]
[1719382839814,38.1812,137.51,137.45,16.6665]
[1719382840009,7.2739,137.48,137.45,16.6665]
[1719382840216,7.2734,137.49,137.45,16.6665]
[1719382841034,7.2738,137.48,137.45,16.6665]
[1719382843738,7.2754,137.45,137.42,16.6265]
[1719382843922,7.275,137.46,137.42,16.6265]
[1719382844435,7.2744,137.47,137.42,16.6265]
[1719382844637,7.2748,137.46,137.42,16.6265]
[1719382845214,20.0,137.51,137.43,0.34]
[1719382845725,7.2733,137.49,137.43,7.616]
[1719382846141,7.2728,137.5,137.44,7.2758]
[1719382846342,7.2728,137.5,137.45,0.34]
[1719382846525,7.2728,137.5,137.45,0.17]
[1719382847041,20.0,137.51,137.43,14.7282]
[1719382847042,20.0,137.51,137.44,0.17]
[1719382847214,7.2741,137.48,137.44,0.17]
[1719382847841,18.182,137.5,137.43,0.17]
[1719382848043,7.2748,137.46,137.43,0.17]
[1719382848244,7.2744,137.47,137.43,0.17]
[1719382848551,7.2744,137.47,137.42,0.34]
[1719382849119,7.2739,137.48,137.42,0.34]
[1719382851048,7.2739,137.48,137.42,7.622]
[1719382851234,7.2743,137.47,137.42,7.622]
[1719382853453,6.3943,137.47,137.42,7.622]
[1719382855439,18.182,137.5,137.42,0.34]
[1719382855638,7.2746,137.47,137.42,0.34]
[1719382856347,18.1845,137.48,137.42,0.34]
[1719382856553,7.2757,137.45,137.41,0.34]
[1719382857348,7.276,137.44,137.4,6.1571]
[1719382857859,7.2754,137.45,137.4,6.1571]
[1719382858661,7.275,137.46,137.41,0.17]
[1719382858842,7.275,137.46,137.41,0.34]
[1719382859252,7.2753,137.45,137.41,0.34]
[1719382859959,7.275,137.46,137.41,0.34]
[1719382860335,7.2733,137.49,137.43,7.2761]
[1719382860555,7.2738,137.48,137.44,0.34]
[1719382860851,7.2743,137.47,137.44,0.34]
[1719382861050,7.2743,137.47,137.44,0.17]
[1719382861247,7.2743,137.47,137.43,0.34]
[1719382862252,7.2743,137.47,137.42,18.1916]
[1719382862653,7.2743,137.47,137.41,7.6172]
[1719382862654,18.1832,137.49,137.41,0.34]
[1719382862959,7.2756,137.45,137.41,0.34]
[1719382864735,7.2749,137.46,137.41,0.34]
[1719382866158,7.2741,137.48,137.42,7.4468]
[1719382867439,20.0,137.51,137.42,7.4468]
[1719382867644,20.0,137.51,137.43,0.17]
[1719382868233,27.26873753,137.51,137.4,6.1571]
[1719382868451,7.2763,137.44,137.4,6.1571]
[1719382868654,7.2754,137.45,137.4,6.1571]
[1719382869559,7.2759,137.44,137.4,6.1571]
[1719382873056,18.1847,137.48,137.4,6.1571]
[1719382873275,18.1847,137.48,137.42,7.2769]
[1719382873276,7.2739,137.48,137.42,7.2769]
[1719382873447,7.2739,137.48,137.43,0.34]
[1719382873749,7.26873753,137.5,137.4,6.1571]
[1719382873955,7.2763,137.44,137.4,6.1571]
[1719382874144,7.2763,137.44,137.41,0.34]
[1719382874349,7.2755,137.45,137.41,0.34]
[1719382875649,7.2759,137.44,137.4,6.1571]
[1719382877342,7.2774,137.41,137.4,6.1571]
[1719382877541,7.2774,137.41,137.36,6.1848]
[1719382878658,7.2771,137.42,137.37,0.34]
[1719382879040,18.1887,137.45,137.37,7.6195]
[1719382879041,7.2765,137.43,137.37,7.6195]
[1719382880263,7.2769,137.42,137.37,0.34]
[1719382880469,7.276,137.44,137.38,7.279]
[1719382880766,7.276,137.44,137.39,0.34]
[1719382881271,7.2765,137.43,137.39,0.34]
[1719382881495,7.2765,137.43,137.38,0.34]
[1719382881761,7.2769,137.42,137.38,0.34]
[1719382881966,7.2769,137.42,137.37,0.34]
[1719382882363,7.2775,137.41,137.37,16.2336]
[1719382884466,7.2782,137.4,137.37,15.8936]
[1719382884663,7.2785,137.39,137.36,6.1848]
[1719382888888,7.2781,137.4,137.36,6.1848]
[1719382890065,18.1903,137.44,137.36,6.1848]
[1719382890383,34.4211,137.47,137.36,6.1848]
[1719382890688,41.68983753,137.47,137.37,7.20334352]
[1719382890890,7.2765,137.43,137.37,14.48244352]
[1719382891468,7.2765,137.43,137.37,7.6191]
[1719382892059,7.277,137.42,137.37,0.34]
[1719382892474,7.2753,137.46,137.4,7.2779]
[1719382892695,7.2753,137.46,137.41,0.34]
[1719382892866,7.2753,137.46,137.38,16.4905]
[1719382892867,7.2767,137.43,137.38,16.4905]
[1719382893067,25.45513753,137.47,137.38,16.4905]
[1719382893388,7.2764,137.43,137.39,0.34]
[1719382894685,25.45513753,137.47,137.39,0.17]
[1719382894686,7.277,137.42,137.39,0.17]
[1719382894860,7.277,137.42,137.38,16.4905]
[1719382896385,7.2766,137.43,137.38,16.4905]
[1719382897270,7.2749,137.46,137.4,7.2776]
[1719382897480,7.2749,137.46,137.41,0.34]
[1719382897989,7.2754,137.45,137.41,0.34]
[1719382898183,7.275,137.46,137.4,7.618]
[1719382898585,7.2753,137.45,137.4,0.34]
[1719382902981,7.2764,137.43,137.38,16.4905]
[1719382903183,7.2762,137.44,137.39,0.34]
[1719382903491,7.2766,137.43,137.39,0.34]
[1719382904563,7.2766,137.43,137.38,16.4905]
[1719382904564,18.1875,137.46,137.38,16.4905]
[1719382904794,7.2778,137.41,137.38,16.4905]
[1719382904998,7.2778,137.41,137.38,15.87566332]
[1719382906593,7.278,137.4,137.38,15.87566332]
[1719382906793,7.278,137.4,137.36,6.1848]
[1719382907495,7.2776,137.41,137.36,6.1848]
[1719382907995,7.2776,137.41,137.36,13.41991874]
[1719382908899,18.1899,137.44,137.36,13.41991874]
[1719382909105,18.1932,137.42,137.36,6.1848]
[1719382909275,20.0,137.41,137.36,6.1848]
[1719382909477,20.0,137.41,137.35,16.4254]
[1719382909980,7.2792,137.38,137.35,16.0854]
[1719382910698,7.2787,137.39,137.35,16.0854]
[1719382910900,7.2792,137.38,137.35,16.0854]
[1719382913691,7.281,137.35,137.32,15.0895]
[1719382914201,7.2813,137.34,137.32,15.0895]
[1719382915283,7.2808,137.35,137.32,15.0895]
[1719382915901,7.2812,137.34,137.3,6.1817]
[1719382918004,7.2808,137.35,137.3,6.1817]
[1719382919991,7.2817,137.33,137.3,6.1817]
[1719382920492,18.198,137.38,137.3,6.1817]
[1719382920493,7.2812,137.34,137.3,6.1817]
[1719382920704,7.2808,137.35,137.3,6.1817]
[1719382920883,7.2812,137.34,137.3,6.1817]
[1719382921907,7.2814,137.34,137.3,6.1817]
[1719382922083,18.198,137.38,137.3,6.1817]
[1719382922084,7.2817,137.33,137.3,6.1817]
[1719382923194,7.2824,137.32,137.3,6.1817]
[1719382925628,18.2008,137.36,137.3,6.1817]
[1719382925923,15.4629,137.33,137.27,7.6025879]
[1719382926125,7.2843,137.28,137.23,18.2162]
[1719382926315,7.2849,137.27,137.23,7.6059388]
[1719382926637,15.4629,137.33,137.23,7.6059388]
[1719382926638,7.2855,137.26,137.23,7.6059388]
[1719382927000,7.286,137.25,137.22,6.04]
[1719382927308,7.2866,137.24,137.22,6.04]
[1719382927527,18.2113,137.28,137.22,6.04]
[1719382927528,7.2861,137.25,137.22,6.04]
[1719382927699,7.2865,137.24,137.22,6.04]
[1719382928025,18.2113,137.28,137.22,6.04]
[1719382928209,7.2871,137.23,137.18,6.5915]
[1719382928412,7.2867,137.24,137.18,6.5915]
[1719382929011,7.287,137.23,137.18,6.5915]
[1719382930029,18.2113,137.28,137.18,13.8811]
[1719382930227,20.0,137.27,137.18,13.8811]
[1719382930517,7.2868,137.24,137.18,13.8811]
[1719382930725,7.2858,137.26,137.19,7.2891]
[1719382931122,7.2861,137.25,137.18,13.881]
[1719382931301,7.2861,137.25,137.19,0.34]
[1719382932224,7.2861,137.25,137.19,7.6291]
[1719382933045,7.98373753,137.28,137.2,7.2885]
[1719382933208,7.98373753,137.28,137.22,16.0363]
[1719382933403,7.2849,137.27,137.23,0.17]
[1719382933633,7.2849,137.27,137.23,0.34]
[1719382934630,7.2845,137.28,137.23,6.4635]
[1719382934830,7.285,137.27,137.23,6.4635]
[1719382937617,7.2845,137.28,137.23,6.4635]
[1719382938499,7.285,137.27,137.23,6.4635]
[1719382938704,7.2855,137.26,137.23,6.2935]
[1719382939007,7.2855,137.26,137.23,6.1235]
[1719382939834,7.285,137.27,137.23,6.1235]
[1719382940009,18.2078,137.31,137.23,6.1235]
[1719382940209,20.0,137.3,137.24,0.34]
[1719382940425,7.2841,137.29,137.24,0.34]
[1719382941225,7.2844,137.28,137.24,0.34]
[1719382941431,7.2852,137.27,137.23,6.1235]
[1719382941624,7.2844,137.28,137.24,0.17]
[1719382941935,7.2844,137.28,137.24,0.34]
[1719382943642,7.284,137.29,137.24,0.34]
[1719382943931,7.2849,137.27,137.24,0.34]
[1719382945709,7.2854,137.26,137.23,6.1235]
[1719382946438,7.285,137.27,137.23,6.1235]
[1719382946636,7.2845,137.28,137.24,0.34]
[1719382946835,18.2084,137.3,137.24,0.34]
[1719382946836,7.2849,137.27,137.24,0.34]
[1719382947038,7.2849,137.27,137.23,6.1235]
[1719382947232,7.2856,137.26,137.23,6.1235]
[1719382947435,7.285,137.27,137.23,6.1235]
[1719382948036,7.2845,137.28,137.23,6.1235]
[1719382948236,7.2845,137.28,137.24,0.34]
[1719382948933,7.2851,137.27,137.24,0.34]
[1719382949241,18.2076,137.31,137.24,0.34]
[1719382949440,7.2844,137.28,137.24,0.34]
[1719382949632,18.2076,137.31,137.24,0.34]
[1719382949827,7.2828,137.31,137.26,7.2854]
[1719382950137,7.18568197,137.34,137.27,15.38274225]
[1719382950329,7.18568197,137.34,137.28,0.17]
[1719382950836,7.282,137.33,137.28,0.17]
[1719382951223,7.2822,137.32,137.28,0.17]
[1719382955942,7.2819,137.33,137.28,0.17]
[1719382956321,7.2819,137.33,137.28,6.7717]
[1719382956640,7.2819,137.33,137.29,0.17]
[1719382957140,7.2823,137.32,137.29,0.17]
[1719382959840,33.8767,137.37,137.29,0.17]
[1719382960037,7.2815,137.34,137.29,0.17]
[1719382960420,7.2817,137.33,137.29,0.17]
[1719382962238,7.2822,137.32,137.29,0.17]
[1719382967322,7.2819,137.33,137.29,0.17]
[1719382968147,83.90377086,137.4,137.29,0.17]
[1719382968349,7.2803,137.36,137.29,0.17]
[1719382968842,7.2803,137.36,137.3,14.5721]
[1719382969146,7.2807,137.35,137.31,0.34]
[1719382969521,7.2813,137.34,137.31,0.34]
[1719382969723,7.2813,137.34,137.32,0.17]
[1719382969946,7.2813,137.34,137.3,7.629]
[1719382970340,7.2814,137.34,137.3,0.34]
[1719382970532,7.2814,137.34,137.29,0.34]
[1719382970734,7.2814,137.34,137.29,7.629]
[1719382972155,7.2807,137.35,137.29,14.9128]
[1719382972355,7.2807,137.35,137.3,14.90654603]
[1719382972532,7.2807,137.35,137.31,0.34]
[1719382973145,18.1981,137.38,137.31,0.34]
[1719382973146,22.93587086,137.4,137.32,16.4607]
[1719382973356,7.2797,137.37,137.33,0.34]
[1719382973854,7.2792,137.38,137.33,0.34]
[1719382974836,7.2792,137.38,137.33,6.8318]
[1719382977668,18.1945,137.41,137.33,6.8318]
[1719382977964,18.1966,137.39,137.33,6.8318]
[1719382978162,7.2802,137.36,137.33,6.8318]
[1719382979966,7.2808,137.35,137.29,13.8997]
[1719382981051,7.2808,137.35,137.29,21.1887]
[1719382981757,7.2808,137.35,137.3,0.17]
[1719382981958,7.2808,137.35,137.3,0.34]
[1719382982962,7.2803,137.36,137.3,7.6232]
[1719382983340,7.2807,137.35,137.3,0.34]
[1719382984666,18.1995,137.37,137.29,6.616]
[1719382985042,7.2818,137.33,137.29,6.616]
[1719382985242,7.2813,137.34,137.29,6.616]
[1719382985748,15.4437,137.39,137.29,6.616]
[1719382985949,7.2804,137.36,137.3,7.2832]
[1719382986572,7.2806,137.35,137.3,7.2832]
[1719382986749,7.2806,137.35,137.29,21.5286]
[1719382986953,7.2812,137.34,137.3,0.34]
[1719382987153,7.2808,137.35,137.3,0.34]
[1719382990350,7.2812,137.34,137.3,0.34]
[1719382990550,20.0,137.38,137.29,6.616]
[1719382990759,7.2822,137.32,137.29,6.616]
[1719382991167,7.2818,137.33,137.29,6.616]
[1719382991466,7.2823,137.32,137.29,6.616]
[1719382992375,7.2819,137.33,137.29,6.616]
[1719382998979,7.2813,137.34,137.29,6.616]
[1719383000885,7.2807,137.35,137.29,24.8254]
[1719383001058,26.46707086,137.38,137.3,0.34]
[1719383001254,7.2804,137.36,137.3,7.6233]
[1719383002081,7.2807,137.35,137.3,0.34]
[1719383002466,7.2812,137.34,137.3,0.34]
[1719383003684,7.2808,137.35,137.3,0.34]
[1719383004385,7.2813,137.34,137.3,0.34]
[1719383014592,7.2808,137.35,137.3,0.34]
[1719383016700,7.2812,137.34,137.3,0.34]
[1719383020391,7.2824,137.32,137.29,6.616]
[1719383021689,7.2828,137.31,137.29,6.616]
[1719383021885,7.2828,137.31,137.28,16.5112]
[1719383022975,7.2828,137.31,137.26,6.2715]
[1719383027588,7.2828,137.31,137.26,6.2715]
[1719383027998,7.2828,137.31,137.26,13.5568]
[1719383028186,7.282,137.33,137.27,7.6245]
[1719383029293,7.2823,137.32,137.27,7.6245]
[1719383029490,7.2823,137.32,137.27,0.34]
[1719383031504,7.2829,137.31,137.27,0.34]
[1719383035810,7.2833,137.3,137.27,0.34]
[1719383036106,7.2829,137.31,137.27,0.34]
[1719383036536,58.64314448,137.38,137.27,18.5521]